bitfinex-derivatives/quotes_BTCF0:USTF0_20251002
["timestamp","ask_amount","ask_price","bid_price","bid_amount"]
[1759363970124,1.3128167,119210.0,119200.0,0.02181]
[1759363970326,0.1065203,119200.0,119190.0,0.458521]
[1759363970628,0.1065203,119200.0,119190.0,0.081111]
[1759363970629,0.1196603,119200.0,119190.0,0.081111]
[1759363970830,0.1196603,119200.0,119190.0,0.02181]
[1759363971226,0.1196603,119200.0,119190.0,0.081111]
[1759363971730,0.1236603,119200.0,119190.0,0.087111]
[1759363971930,0.1296603,119200.0,119190.0,0.103111]
[1759363972930,0.4904603,119200.0,119190.0,0.103111]
[1759363973130,0.1296603,119200.0,119190.0,0.103111]
[1759363974030,0.4904603,119200.0,119190.0,0.103111]
[1759363975429,0.48039365,119200.0,119190.0,0.08144486]
[1759363975625,1.19391098,119200.0,119190.0,0.08144486]
[1759363976021,3.72695098,119200.0,119190.0,0.08144486]
[1759363976224,1.19391098,119200.0,119190.0,0.08144486]
[1759363976434,3.72691098,119200.0,119190.0,0.08144486]
[1759363976832,1.19391098,119200.0,119190.0,0.08144486]
[1759363977133,2.65255365,119200.0,119190.0,0.41677219]
[1759363977329,2.65255365,119200.0,119190.0,0.10325486]
[1759363977725,0.11959365,119200.0,119190.0,0.10325486]
[1759363977928,0.95123365,119200.0,119190.0,0.04381]
[1759363978236,0.95115365,119200.0,119190.0,0.04381]
[1759363978430,0.95111365,119200.0,119190.0,0.04381]
[1759363978825,1.31191365,119200.0,119190.0,0.04381]
[1759363979026,0.95111365,119200.0,119190.0,0.04381]
[1759363979731,1.31191365,119200.0,119190.0,0.022]
[1759363980635,0.48039365,119200.0,119190.0,0.022]
[1759363980935,1.31183365,119200.0,119190.0,0.04381]
[1759363981130,0.95103365,119200.0,119190.0,0.04381]
[1759363981335,1.31183365,119200.0,119190.0,0.022]
[1759363982534,0.95071365,119200.0,119190.0,0.022]
[1759363983335,0.48039365,119200.0,119190.0,0.022]
[1759363983533,1.31143365,119200.0,119190.0,0.022]
[1759363983934,1.31139365,119200.0,119190.0,0.022]
[1759363984128,1.29776152,119200.0,119190.0,0.022]
[1759363984536,1.61123885,119200.0,119190.0,0.022]
[1759363984729,2.01123885,119200.0,119190.0,0.08147529]
[1759363985437,3.70257108,119200.0,119190.0,0.08147529]
[1759363986137,0.85669375,119200.0,119190.0,0.08147529]
[1759363986340,3.70245108,119200.0,119190.0,0.08147529]
[1759363986639,3.70241108,119200.0,119190.0,0.08147529]
[1759363986835,0.0838575,119190.0,119180.0,0.04656097]
[1759363987031,0.1065345,119180.0,119170.0,0.05037096]
[1759363987228,0.4673345,119180.0,119170.0,0.03442]
[1759363987438,1.2980145,119180.0,119170.0,0.07904206]
[1759363987636,0.9372145,119180.0,119170.0,0.07904206]
[1759363987941,1.2980145,119180.0,119170.0,0.07904206]
[1759363988129,1.29807723,119180.0,119170.0,0.07904206]
[1759363988738,1.3022902,119180.0,119170.0,0.07904206]
[1759363989338,0.0838714,119170.0,119160.0,0.05723206]
[1759363989543,0.4673414,119170.0,119160.0,0.07904206]
[1759363989939,0.1065414,119170.0,119160.0,0.07904206]
[1759363991243,0.1145414,119170.0,119160.0,0.07904206]
[1759363991744,0.79348873,119170.0,119160.0,0.04462206]
[1759363991948,0.80048873,119170.0,119160.0,0.04462206]
[1759363992148,0.1065555,119150.0,119140.0,0.39522]
[1759363992344,0.9368355,119150.0,119140.0,0.03442]
[1759363992646,0.9368355,119150.0,119140.0,0.39522]
[1759363993042,0.9368355,119150.0,119140.0,0.03442]
[1759363993243,0.02267,119150.0,119140.0,0.34793733]
[1759363993550,0.4953445,119170.0,119160.0,0.03442]
[1759363993841,1.2975045,119170.0,119160.0,0.10859225]
[1759363994033,0.4673445,119170.0,119160.0,0.10859225]
[1759363994235,0.02267,119170.0,119160.0,0.1182984]
[1759363994547,0.02273273,119180.0,119170.0,0.1182913]
[1759363994744,0.85277273,119180.0,119170.0,0.14794656]
[1759363995046,0.85693625,119180.0,119170.0,0.14794656]
[1759363995249,0.94080055,119180.0,119170.0,0.06407526]
[1759363995842,1.30160055,119180.0,119170.0,0.06407526]
[1759363996450,0.47756055,119180.0,119170.0,0.06407526]
[1759363996648,1.30744055,119180.0,119170.0,0.06407526]
[1759363996844,0.97364055,119180.0,119170.0,0.06407526]
[1759363997249,0.96947703,119180.0,119170.0,0.14794666]
[1759363997543,0.96947703,119180.0,119170.0,0.50874666]
[1759363997844,0.96947703,119180.0,119170.0,0.19245001]
[1759363998052,0.96947703,119180.0,119170.0,0.55325001]
[1759363999148,0.96947703,119180.0,119170.0,0.19245001]
[1759363999342,1.28299436,119180.0,119170.0,0.03442]
[1759363999548,0.96947703,119180.0,119170.0,0.03442]
[1759363999952,0.96947703,119180.0,119170.0,0.06406793]
[1759364000146,0.96947703,119180.0,119170.0,0.03442]
[1759364000342,0.03306273,119180.0,119170.0,1.23711208]
[1759364000542,0.01573652,119180.0,119170.0,1.37146884]
[1759364001447,0.01579609,119180.0,119170.0,1.37146884]
[1759364001648,0.09966039,119180.0,119170.0,0.5740413]
[1759364001948,5.957e-05,119180.0,119170.0,0.88755863]
[1759364002149,0.00705957,119180.0,119170.0,0.88755863]
[1759364002349,0.01105957,119180.0,119170.0,0.89155863]
[1759364002653,5.957e-05,119180.0,119170.0,0.88755863]
[1759364002853,0.00605957,119180.0,119170.0,0.94685996]
[1759364003056,5.957e-05,119180.0,119170.0,0.95085996]
[1759364003352,0.00705957,119180.0,119170.0,0.95085996]
[1759364004456,0.00405957,119180.0,119170.0,0.64931352]
[1759364004755,0.00405957,119180.0,119170.0,0.96283085]
[1759364005254,0.00405957,119180.0,119170.0,0.90355863]
[1759364006054,0.00405957,119180.0,119170.0,1.37769005]
[1759364006546,0.1106144,119220.0,119210.0,0.1199833]
[1759364006753,0.1106144,119220.0,119210.0,0.46312798]
[1759364006754,0.8329851,119220.0,119210.0,0.46312798]
[1759364007049,0.1063833,119230.0,119220.0,0.1199763]
[1759364007254,0.9351033,119230.0,119220.0,0.79429363]
[1759364007453,0.9351033,119230.0,119220.0,0.82392098]
[1759364007757,0.82872,119230.0,119220.0,0.82392098]
[1759364008150,0.02255,119240.0,119230.0,0.1199692]
[1759364008361,0.9349722,119240.0,119230.0,0.79428653]
[1759364008562,0.85115,119240.0,119230.0,0.82391388]
[1759364009052,0.8286,119240.0,119230.0,0.82391388]
[1759364009356,0.8496,119240.0,119230.0,0.82891388]
[1759364010749,0.9124221,119240.0,119230.0,0.83491388]
[1759364010955,0.9164221,119240.0,119230.0,0.83491388]
[1759364011351,0.9164221,119240.0,119230.0,0.72145733]
[1759364012350,0.9389721,119240.0,119230.0,0.72145733]
[1759364012553,0.9389721,119240.0,119230.0,0.80528653]
[1759364012754,0.9389721,119240.0,119230.0,0.72145733]
[1759364013053,0.9389721,119240.0,119230.0,0.40794]
[1759364013454,0.9389721,119240.0,119230.0,0.72145733]
[1759364013855,0.9389721,119240.0,119230.0,0.40794]
[1759364014054,0.9389721,119240.0,119230.0,0.4917692]
[1759364014356,0.9389721,119240.0,119230.0,0.40794]
[1759364014556,0.9389721,119240.0,119230.0,0.72145733]
[1759364014754,0.004,119240.0,119230.0,1.29474175]
[1759364015656,0.004,119240.0,119230.0,1.3243691]
[1759364015850,0.004,119240.0,119230.0,2.23587709]
[1759364016055,0.12359599,119270.0,119260.0,0.43346543]
[1759364016356,0.95123599,119270.0,119260.0,0.4807481]
[1759364016558,0.95536971,119270.0,119260.0,0.4807481]
[1759364017060,0.95524971,119270.0,119260.0,0.4807481]
[1759364017944,0.99324971,119270.0,119260.0,0.80426543]
[1759364018146,0.97045882,119270.0,119260.0,0.80426543]
[1759364018351,0.88252,119270.0,119260.0,0.89131223]
[1759364018554,0.83052,119270.0,119260.0,0.88831223]
[1759364018750,0.83052,119270.0,119260.0,1.3075374]
[1759364018751,0.003,119270.0,119260.0,1.3075374]
[1759364018955,0.026,119270.0,119260.0,1.3125374]
[1759364019154,0.1323511,119270.0,119260.0,0.8287293]
[1759364019661,0.1323511,119270.0,119260.0,0.51521197]
[1759364020656,0.1323511,119270.0,119260.0,0.59902007]
[1759364020958,0.13658062,119270.0,119260.0,0.59902007]
[1759364021356,0.96370062,119270.0,119260.0,0.42416517]
[1759364021555,1.68127795,119270.0,119260.0,0.02722517]
[1759364021853,0.96776062,119270.0,119260.0,0.02722517]
[1759364022164,0.96370062,119270.0,119260.0,0.02722517]
[1759364022459,1.36776062,119270.0,119260.0,0.02722517]
[1759364022760,1.68127795,119270.0,119260.0,0.02722517]
[1759364022958,1.72856062,119270.0,119260.0,0.02722517]
[1759364023647,2.04207795,119270.0,119260.0,0.02722517]
[1759364024451,1.72450062,119270.0,119260.0,0.05037517]
[1759364024755,1.36370062,119270.0,119260.0,0.05037517]
[1759364024959,1.36370062,119270.0,119260.0,0.42416517]
[1759364024960,0.96326062,119270.0,119260.0,0.42416517]
[1759364025254,0.96732062,119270.0,119260.0,0.02722517]
[1759364025453,1.32812062,119270.0,119260.0,0.02722517]
[1759364025658,1.72812062,119270.0,119260.0,0.02722517]
[1759364026358,2.04163795,119270.0,119260.0,0.02722517]
[1759364029158,1.72812062,119270.0,119260.0,0.02722517]
[1759364029764,1.72812062,119270.0,119260.0,0.05685252]
[1759364030062,1.36326062,119270.0,119260.0,0.09359252]
[1759364030251,1.36274062,119270.0,119260.0,0.09359252]
[1759364030562,1.36254062,119270.0,119260.0,0.09359252]
[1759364030763,1.36254062,119270.0,119260.0,0.45439252]
[1759364030955,1.36250062,119270.0,119260.0,0.45439252]
[1759364031156,0.13658062,119270.0,119260.0,0.45439252]
[1759364031362,0.96250062,119270.0,119260.0,0.45439252]
[1759364032161,0.97307062,119270.0,119260.0,0.09359252]
[1759364032361,0.96250062,119270.0,119260.0,0.09359252]
[1759364033763,1.33387062,119270.0,119260.0,0.05685252]
[1759364034157,2.10719676,119270.0,119260.0,0.05685252]
[1759364034366,1.73387062,119270.0,119260.0,0.05685252]
[1759364034557,2.10719676,119270.0,119260.0,0.05685252]
[1759364034762,1.73387062,119270.0,119260.0,0.05685252]
[1759364035552,0.90795062,119270.0,119260.0,0.05685252]
[1759364035753,1.73339062,119270.0,119260.0,0.05685252]
[1759364036364,1.37259062,119270.0,119260.0,0.05685252]
[1759364036863,0.53658062,119270.0,119260.0,0.07957252]
[1759364037067,1.36202062,119270.0,119260.0,0.09316252]
[1759364038167,1.37259062,119270.0,119260.0,0.09316252]
[1759364038368,1.37259062,119270.0,119260.0,0.05685252]
[1759364039469,2.10671676,119270.0,119260.0,0.05685252]
[1759364039660,1.73339062,119270.0,119260.0,0.05685252]
[1759364041156,2.10671676,119270.0,119260.0,0.05685252]
[1759364041363,0.0838081,119260.0,119250.0,0.04444102]
[1759364041568,0.0838152,119250.0,119240.0,0.04444102]
[1759364041871,1.2695352,119250.0,119240.0,0.04444102]
[1759364042063,1.64286134,119250.0,119240.0,0.04444102]
[1759364042569,0.4446152,119250.0,119240.0,0.05803102]
[1759364042761,0.9086152,119250.0,119240.0,0.08075102]
[1759364043259,0.0838152,119250.0,119240.0,0.16457322]
[1759364043458,0.1008125,119260.0,119250.0,0.01359]
[1759364043667,0.9085325,119260.0,119250.0,0.0807655]
[1759364043962,0.0838152,119250.0,119240.0,0.0650455]
[1759364044168,0.0838152,119250.0,119240.0,0.02059]
[1759364044369,0.0838152,119250.0,119240.0,0.05804797]
[1759364044565,0.0838152,119250.0,119240.0,0.01359]
[1759364044767,0.0838222,119240.0,119230.0,0.4330447]
[1759364045068,0.9084622,119240.0,119230.0,0.01299]
[1759364045870,0.9184622,119240.0,119230.0,0.03771]
[1759364046072,0.9184622,119240.0,119230.0,0.0969647]
[1759364046270,0.9084622,119240.0,119230.0,0.0949647]
[1759364046674,1.2692622,119240.0,119230.0,0.0722447]
[1759364047169,1.2752622,119240.0,119230.0,0.0792447]
[1759364047369,1.2692622,119240.0,119230.0,0.0722447]
[1759364047558,1.2802622,119240.0,119230.0,0.0752447]
[1759364047763,0.98630057,119240.0,119230.0,0.4587647]
[1759364047958,0.98630057,119240.0,119230.0,0.0979647]
[1759364048371,1.34710057,119240.0,119230.0,0.0622547]
[1759364048775,2.12042671,119240.0,119230.0,0.003]
[1759364049275,2.12042671,119240.0,119230.0,0.04750158]
[1759364049866,0.16194057,119240.0,119230.0,0.08381158]
[1759364050064,0.98610057,119240.0,119230.0,0.4593647]
[1759364050269,0.98610057,119240.0,119230.0,0.8593647]
[1759364050270,0.9189422,119240.0,119230.0,0.8593647]
[1759364050870,0.0948222,119240.0,119230.0,0.8593647]
[1759364051077,0.9189022,119240.0,119230.0,1.03354798]
[1759364051371,0.0948221,119240.0,119230.0,0.89046418]
[1759364051570,0.9189021,119240.0,119230.0,0.89046418]
[1759364051772,0.9188221,119240.0,119230.0,0.89046418]
[1759364052170,0.9188221,119240.0,119230.0,1.26379032]
[1759364052673,0.9188221,119240.0,119230.0,0.40011]
[1759364054175,0.9188221,119240.0,119230.0,0.03931]
[1759364055274,0.9186221,119240.0,119230.0,0.03931]
[1759364055670,0.9186221,119240.0,119230.0,0.4593647]
[1759364056176,0.9183821,119240.0,119230.0,0.4593647]
[1759364056676,0.9183821,119240.0,119230.0,0.5431939]
[1759364056876,0.9183821,119240.0,119230.0,0.4593647]
[1759364057471,0.98627147,119240.0,119230.0,0.4593647]
[1759364057675,0.98615147,119240.0,119230.0,0.4593647]
[1759364057970,0.9182621,119240.0,119230.0,0.80011]
[1759364058177,0.9182621,119240.0,119230.0,0.89145941]
[1759364058968,0.9182621,119240.0,119230.0,0.43931]
[1759364060282,0.9182621,119240.0,119230.0,0.09872098]
[1759364060777,1.69495825,119240.0,119230.0,0.06242616]
[1759364061872,1.72163211,119240.0,119230.0,0.06242616]
[1759364062074,2.09495825,119240.0,119230.0,0.06242616]
[1759364062877,2.09495825,119240.0,119230.0,0.003]
[1759364063977,3.79515825,119240.0,119230.0,0.003]
[1759364064282,1.32099211,119240.0,119230.0,0.01641]
[1759364064479,0.49819211,119240.0,119230.0,0.01641]
[1759364064675,1.32095211,119240.0,119230.0,0.01641]
[1759364064875,1.32095211,119240.0,119230.0,0.07583616]
[1759364065282,1.32095211,119240.0,119230.0,0.003]
[1759364065283,2.09427825,119240.0,119230.0,0.003]
[1759364065482,2.09427825,119240.0,119230.0,0.04755916]
[1759364066580,2.09427825,119240.0,119230.0,0.003]
[1759364066877,0.49819211,119240.0,119230.0,0.01641]
[1759364067081,0.49819211,119240.0,119230.0,0.03772]
[1759364067082,1.32071211,119240.0,119230.0,0.03772]
[1759364067684,1.32071211,119240.0,119230.0,0.01641]
[1759364067980,0.49819211,119240.0,119230.0,0.01641]
[1759364068181,1.32071211,119240.0,119230.0,0.01641]
[1759364068681,1.32071211,119240.0,119230.0,0.07583616]
[1759364069684,1.32071211,119240.0,119230.0,0.08231757]
[1759364070071,1.32071211,119240.0,119230.0,0.06100757]
[1759364070277,1.32071211,119240.0,119230.0,0.01641]
[1759364071383,1.32055211,119240.0,119230.0,0.06743527]
[1759364072277,1.32027211,119240.0,119230.0,0.06743527]
[1759364072680,0.49819211,119240.0,119230.0,0.06743527]
[1759364072885,0.893092,119240.0,119230.0,0.92694677]
[1759364073185,0.893092,119240.0,119230.0,0.84311757]
[1759364073578,0.893092,119240.0,119230.0,0.48231757]
[1759364074080,1.253892,119240.0,119230.0,0.48231757]
[1759364075786,0.892852,119240.0,119230.0,0.48231757]
[1759364078692,0.95986979,119240.0,119230.0,0.48231757]
[1759364078881,1.69399593,119240.0,119230.0,0.06100757]
[1759364079087,1.69399593,119240.0,119230.0,0.03269957]
[1759364079584,0.49894979,119240.0,119230.0,0.06741957]
[1759364079887,1.32014979,119240.0,119230.0,0.06741957]
[1759364080089,1.32014979,119240.0,119230.0,0.04610957]
[1759364081292,0.49894979,119240.0,119230.0,0.04610957]
[1759364081600,0.49894979,119240.0,119230.0,0.06741957]
[1759364081601,1.31994979,119240.0,119230.0,0.06741957]
[1759364081999,0.49894979,119240.0,119230.0,0.06741957]
[1759364082305,1.31994979,119240.0,119230.0,0.06741957]
[1759364082698,1.31994979,119240.0,119230.0,0.11201714]
[1759364083000,1.31994979,119240.0,119230.0,0.04610957]
[1759364085102,1.31994979,119240.0,119230.0,0.06100757]
[1759364086898,2.09327593,119240.0,119230.0,0.04459757]
[1759364087099,0.0898562,119220.0,119210.0,0.0520584]
[1759364087299,1.65119202,119220.0,119210.0,0.0520584]
[1759364087499,0.45144588,119220.0,119210.0,0.0867784]
[1759364087697,1.27180588,119220.0,119210.0,0.0867784]
[1759364087897,1.27180588,119220.0,119210.0,0.03472]
[1759364088106,0.45152617,119220.0,119210.0,0.03472]
[1759364088302,0.45152617,119220.0,119210.0,0.03597]
[1759364088604,1.28376617,119220.0,119210.0,0.05997]
[1759364089598,1.27176617,119220.0,119210.0,0.01341]
[1759364089798,0.0838432,119210.0,119200.0,0.01341]
[1759364090000,0.1042832,119210.0,119200.0,0.03597]
[1759364090501,0.10936463,119210.0,119200.0,0.03597]
[1759364090706,0.10936463,119210.0,119200.0,0.01341]
[1759364091102,0.1042903,119200.0,119190.0,0.39677]
[1759364091301,0.91422467,119200.0,119190.0,0.39677]
[1759364092201,0.92122467,119200.0,119190.0,0.38821]
[1759364092402,0.92122467,119200.0,119190.0,0.014]
[1759364092403,1.69455081,119200.0,119190.0,0.014]
[1759364092704,2.05535081,119200.0,119190.0,0.014]
[1759364093007,2.07253851,119200.0,119190.0,0.014]
[1759364093402,0.1043043,119180.0,119170.0,0.03544]
[1759364093604,1.28501975,119180.0,119170.0,0.03544]
[1759364093908,0.90369975,119180.0,119170.0,0.94819647]
[1759364094207,0.90369975,119180.0,119170.0,1.04523782]
[1759364094407,0.08393975,119180.0,119170.0,1.04523782]
[1759364094601,0.08393965,119180.0,119170.0,1.36136642]
[1759364094803,0.09093965,119180.0,119170.0,1.47902589]
[1759364095203,0.09093965,119180.0,119170.0,0.90599893]
[1759364095509,0.10437965,119180.0,119170.0,0.49099893]
[1759364095810,0.10937965,119180.0,119170.0,0.50399893]
[1759364096010,0.10937965,119180.0,119170.0,0.97436642]
[1759364096206,0.10937965,119180.0,119170.0,0.88893911]
[1759364096503,0.10937965,119180.0,119170.0,0.9632475]
[1759364097309,0.09574775,119180.0,119170.0,0.9632475]
[1759364098017,0.005,119180.0,119170.0,1.68400356]
[1759364098603,0.005,119180.0,119170.0,1.69360538]
[1759364098806,0.9032139,119200.0,119190.0,0.1192972]
[1759364099007,0.9031339,119200.0,119190.0,0.78116598]
[1759364099306,0.9031339,119200.0,119190.0,0.87851819]
[1759364100106,0.9081339,119200.0,119190.0,1.28851819]
[1759364100305,0.9031339,119200.0,119190.0,1.27851819]
[1759364100508,0.9101339,119200.0,119190.0,1.29751819]
[1759364100810,0.9101339,119200.0,119190.0,1.37182135]
[1759364101011,0.9323639,119200.0,119190.0,1.28796415]
[1759364101211,0.9323639,119200.0,119190.0,0.57340036]
[1759364101212,1.22336709,119200.0,119190.0,0.57340036]
[1759364101406,1.22336709,119200.0,119190.0,0.87446914]
[1759364101707,1.22336709,119200.0,119190.0,0.42981194]
[1759364101908,1.22336709,119200.0,119190.0,0.51366914]
[1759364102108,1.22336709,119200.0,119190.0,0.87446914]
[1759364102504,0.92229831,119200.0,119190.0,0.93391756]
[1759364102709,0.92229831,119200.0,119190.0,0.8596144]
[1759364105412,0.92229831,119200.0,119190.0,0.7757572]
[1759364106314,1.22336709,119200.0,119190.0,0.19774572]
[1759364106513,1.22336709,119200.0,119190.0,0.4988145]
[1759364108218,1.22336709,119200.0,119190.0,0.8596145]
[1759364108418,1.22336709,119200.0,119190.0,0.4988145]
[1759364108613,1.22336709,119200.0,119190.0,0.8596145]
[1759364108816,1.22336709,119200.0,119190.0,0.19774572]
[1759364109010,1.22336709,119200.0,119190.0,0.07844842]
[1759364109011,2.2766042,119200.0,119190.0,0.07844842]
[1759364109212,2.2696042,119200.0,119190.0,0.05944842]
[1759364109408,1.56241542,119200.0,119190.0,0.4079572]
[1759364109614,1.56741542,119200.0,119190.0,0.4079572]
[1759364109815,1.20661542,119200.0,119190.0,0.10688842]
[1759364110412,1.20661542,119200.0,119190.0,0.07144842]
[1759364110613,1.20957542,119200.0,119190.0,0.06644842]
[1759364110812,0.39145542,119200.0,119190.0,0.06644842]
[1759364111012,0.008,119200.0,119190.0,0.8476144]
[1759364111214,0.17699308,119210.0,119200.0,0.1192902]
[1759364111517,0.99495308,119210.0,119200.0,0.38110149]
[1759364111819,0.99495308,119210.0,119200.0,0.46495169]
[1759364112218,1.00295308,119210.0,119200.0,0.46895169]
[1759364112520,1.30402186,119210.0,119200.0,0.08403271]
[1759364112914,1.29602186,119210.0,119200.0,0.38110149]
[1759364113318,0.99495308,119210.0,119200.0,0.38110149]
[1759364113521,1.29602186,119210.0,119200.0,0.38110149]
[1759364113717,1.29602186,119210.0,119200.0,0.33650878]
[1759364115314,0.09314568,119210.0,119200.0,1.14167628]
[1759364115516,0.4446324,119230.0,119210.0,0.03544]
[1759364115710,0.1060624,119230.0,119220.0,0.82574155]
[1759364115916,0.9235024,119230.0,119220.0,0.82574155]
[1759364116116,0.9235024,119230.0,119220.0,0.46494155]
[1759364116311,0.83967,119230.0,119220.0,1.12681033]
[1759364116523,0.02223,119230.0,119220.0,1.12681033]
[1759364116821,0.9234192,119230.0,119220.0,1.12681033]
[1759364117024,0.02223,119230.0,119220.0,1.12681033]
[1759364117222,0.82299033,119230.0,119220.0,1.12681033]
[1759364117418,0.82299033,119230.0,119220.0,1.22298272]
[1759364117626,0.1060561,119240.0,119230.0,0.1181192]
[1759364117814,0.9232961,119240.0,119230.0,0.82457091]
[1759364118017,0.99604969,119240.0,119230.0,0.82457091]
[1759364118325,0.90672837,119240.0,119230.0,1.12563969]
[1759364118521,0.90672837,119240.0,119230.0,1.61424897]
[1759364118722,0.91372837,119240.0,119230.0,1.62524897]
[1759364119029,0.91372837,119240.0,119230.0,1.32418019]
[1759364119324,0.90672837,119240.0,119230.0,1.01211141]
[1759364119625,0.90672837,119240.0,119230.0,1.31318019]
[1759364120228,0.90672837,119240.0,119230.0,0.92828221]
[1759364120528,0.90672837,119240.0,119230.0,1.22935099]
[1759364120529,0.92793837,119240.0,119230.0,1.22935099]
[1759364120725,0.92793837,119240.0,119230.0,1.31318029]
[1759364121030,0.92793837,119240.0,119230.0,1.62911456]
[1759364121225,0.92793437,119240.0,119230.0,1.56966614]
[1759364121523,0.92955437,119240.0,119230.0,0.96752858]
[1759364121728,0.92955437,119240.0,119230.0,1.26859736]
[1759364123228,0.92955437,119240.0,119230.0,0.96752858]
[1759364123431,0.92955437,119240.0,119230.0,1.26859736]
[1759364124524,0.92955437,119240.0,119230.0,0.52289928]
[1759364124722,1.59142315,119240.0,119230.0,0.37984222]
[1759364124922,1.59142315,119240.0,119230.0,0.05719344]
[1759364125126,1.29035437,119240.0,119230.0,0.35826222]
[1759364125326,1.59142315,119240.0,119230.0,0.35826222]
[1759364125522,1.29035437,119240.0,119230.0,0.38080222]
[1759364126126,1.29035437,119240.0,119230.0,0.07973344]
[1759364126324,1.29035437,119240.0,119230.0,0.38080222]
[1759364126525,1.59142315,119240.0,119230.0,0.38080222]
[1759364126724,1.99142315,119240.0,119230.0,0.38080222]
[1759364127726,1.99142315,119240.0,119230.0,0.04448344]
[1759364127727,2.30012193,119240.0,119230.0,0.04448344]
[1759364128031,1.99905315,119240.0,119230.0,0.34555222]
[1759364128229,2.30012193,119240.0,119230.0,0.04448344]
[1759364128419,0.1118091,119230.0,119220.0,0.34555222]
[1759364128728,0.77367788,119230.0,119220.0,0.04448344]
[1759364129627,0.77867788,119230.0,119220.0,0.05348344]
[1759364129832,0.77367788,119230.0,119220.0,0.04448344]
[1759364130529,1.48174666,119230.0,119220.0,0.05548344]
[1759364130834,1.48174666,119230.0,119220.0,0.011]
[1759364131131,1.48174666,119230.0,119210.0,0.04448344]
[1759364131132,0.0946762,119220.0,119210.0,0.04448344]
[1759364131333,1.87325376,119220.0,119210.0,0.04448344]
[1759364131733,2.27325376,119220.0,119210.0,0.04448344]
[1759364132329,2.27325376,119220.0,119210.0,0.00948344]
[1759364132928,2.27325376,119220.0,119200.0,0.05944842]
[1759364132929,0.0838432,119210.0,119200.0,0.05944842]
[1759364133134,0.0838502,119200.0,119190.0,0.07204842]
[1759364133330,0.8993302,119200.0,119190.0,0.3956572]
[1759364133638,0.8992902,119200.0,119190.0,0.3956572]
[1759364134331,0.9062902,119200.0,119190.0,0.3976572]
[1759364134532,0.0908502,119200.0,119190.0,0.78258328]
[1759364134730,0.9062102,119200.0,119190.0,0.7584572]
[1759364134931,0.9062102,119200.0,119190.0,0.3976572]
[1759364135124,1.20027898,119200.0,119190.0,0.3956572]
[1759364135833,1.86214776,119200.0,119190.0,0.07204842]
[1759364136028,1.87414776,119200.0,119190.0,0.07204842]
[1759364136233,1.57307898,119200.0,119190.0,0.3731172]
[1759364136530,1.56807898,119200.0,119190.0,0.31366878]
[1759364136929,1.57507898,119200.0,119190.0,0.31366878]
[1759364137936,1.57483898,119200.0,119190.0,0.33620878]
[1759364138336,0.9129302,119200.0,119190.0,0.33620878]
[1759364138930,1.2737302,119200.0,119190.0,0.33620878]
[1759364139132,1.87586776,119200.0,119190.0,0.03514]
[1759364139341,0.0838572,119190.0,119180.0,0.0126]
[1759364139531,0.0838572,119190.0,119180.0,0.03514]
[1759364139532,0.74572598,119190.0,119180.0,0.03514]
[1759364139734,0.74572598,119190.0,119180.0,1e-07]
[1759364139735,2.26179476,119190.0,119180.0,1e-07]
[1759364140338,0.0838642,119180.0,119170.0,0.01728]
[1759364140540,1.04680176,119180.0,119170.0,0.01728]
[1759364141736,1.04680176,119180.0,119170.0,0.00468]
[1759364141737,1.44680176,119180.0,119170.0,0.00468]
[1759364142035,1.04680176,119180.0,119170.0,0.00468]
[1759364142243,2.42132143,119180.0,119170.0,0.00468]
[1759364142443,2.42832143,119180.0,119170.0,0.00468]
[1759364142740,2.82832143,119180.0,119170.0,0.00468]
[1759364143342,3.64300143,119180.0,119170.0,0.00468]
[1759364144740,0.0838713,119170.0,119160.0,0.01749075]
[1759364144944,0.91532853,119170.0,119160.0,0.00489075]
[1759364145334,1.31532853,119170.0,119160.0,0.00489075]
[1759364145641,0.0838784,119160.0,119150.0,0.0126]
[1759364145837,1.72989563,119160.0,119150.0,0.0126]
[1759364146238,0.0838855,119150.0,119140.0,0.0126]
[1759364146441,0.91541784,119150.0,119140.0,0.0126]
[1759364146635,0.91541784,119150.0,119130.0,0.09458842]
[1759364146636,0.0838925,119140.0,119130.0,0.09458842]
[1759364146944,1.24112946,119140.0,119130.0,0.09458842]
[1759364147139,1.24112946,119140.0,119130.0,0.0126]
[1759364147140,1.71178669,119140.0,119130.0,0.0126]
[1759364147443,1.77916272,119140.0,119130.0,0.0126]
[1759364148141,1.77912272,119140.0,119130.0,0.03514]
[1759364148537,1.77912272,119140.0,119130.0,0.0126]
[1759364149338,1.31546549,119140.0,119130.0,0.0126]
[1759364149537,0.49402549,119140.0,119130.0,0.0126]
[1759364149741,1.31542549,119140.0,119130.0,0.0126]
[1759364150144,1.78608272,119140.0,119130.0,0.0126]
[1759364150743,1.31526549,119140.0,119130.0,0.0126]
[1759364151344,0.50102549,119140.0,119130.0,0.03591]
[1759364151638,0.95438549,119140.0,119130.0,0.03591]
[1759364152142,0.14022549,119140.0,119130.0,0.03591]
[1759364152342,0.95434549,119140.0,119130.0,0.99046673]
[1759364152550,0.89416185,119140.0,119130.0,1.35979839]
[1759364152744,0.06737603,119140.0,119130.0,1.4551148]
[1759364152943,0.82112,119140.0,119130.0,1.51456322]
[1759364153445,0.007,119140.0,119130.0,1.4551148]
[1759364153645,0.82108,119140.0,119130.0,1.4551148]
[1759364153843,0.81408,119140.0,119130.0,1.4551148]
[1759364154044,0.00571846,119150.0,119140.0,0.1200924]
[1759364154246,0.81971846,119150.0,119140.0,0.85484526]
[1759364154448,0.90360386,119150.0,119140.0,1.25484526]
[1759364154647,0.90360386,119150.0,119140.0,0.96996262]
[1759364154843,0.90360386,119150.0,119140.0,1.26002308]
[1759364155038,0.96920288,119150.0,119140.0,0.89922308]
[1759364155241,0.96920288,119150.0,119140.0,1.26002308]
[1759364155544,0.96920288,119150.0,119140.0,0.397]
[1759364156148,0.97620288,119150.0,119140.0,0.397]
[1759364157346,0.97620288,119150.0,119140.0,0.4808924]
[1759364157546,0.97592288,119150.0,119140.0,0.4808924]
[1759364157748,0.97492288,119150.0,119140.0,0.4808924]
[1759364158638,0.97492288,119150.0,119140.0,0.1200924]
[1759364158848,0.97492288,119150.0,119140.0,0.397]
[1759364159051,0.96128667,119150.0,119140.0,0.0362]
[1759364159244,0.95121672,119150.0,119140.0,0.0362]
[1759364159945,1.31201672,119150.0,119140.0,0.4362]
[1759364160348,1.31819593,119150.0,119140.0,0.4362]
[1759364162747,0.07777823,119150.0,119140.0,0.49404536]
[1759364163051,0.006,119150.0,119140.0,1.34554993]
[1759364163253,0.81924,119150.0,119140.0,1.40499835]
[1759364163453,0.81924,119150.0,119140.0,1.34554993]
[1759364163854,0.9031254,119150.0,119140.0,1.34554993]
[1759364164054,0.9031254,119150.0,119140.0,1.00490599]
[1759364164457,0.9031254,119150.0,119140.0,0.64410599]
[1759364164759,0.97087154,119150.0,119140.0,0.0362]
[1759364164958,1.33167154,119150.0,119140.0,0.1200925]
[1759364165160,1.33167154,119150.0,119140.0,0.0362]